bitfinex/quotes_SOLUSD_20250612
["timestamp","ask_amount","ask_price","bid_price","bid_amount"]
[1749724765904,20.25581702,158.8,158.78,5.7]
[1749724767569,13.95840504,158.8,158.78,5.7]
[1749724767913,13.95840504,158.81,158.78,5.7]
[1749724769988,6.29657732,158.82,158.78,5.7]
[1749724770185,13.95840504,158.81,158.78,5.7]
[1749724771507,13.95840504,158.8,158.78,5.7]
[1749724772804,13.95840504,158.81,158.78,5.7]
[1749724773593,13.95840504,158.8,158.78,5.7]
[1749724774303,6.29687258,158.81,158.78,5.7]
[1749724774495,13.95840504,158.8,158.78,5.7]
[1749724774889,13.95840504,158.81,158.78,5.7]
[1749724775690,13.95840504,158.81,158.77,0.28432314]
[1749724778018,13.95840504,158.81,158.76,0.28432314]
[1749724778223,13.95840504,158.8,158.76,14.24272818]
[1749724780527,6.29643621,158.82,158.76,14.24272818]
[1749724780832,13.95840504,158.8,158.76,14.24272818]
[1749724782909,6.29692718,158.81,158.76,14.24272818]
[1749724783104,13.95840504,158.79,158.76,0.28432314]
[1749724783322,13.95840504,158.79,158.75,5.68]
[1749724783625,20.25606813,158.79,158.75,19.63840504]
[1749724784811,6.29766309,158.79,158.75,19.63840504]
[1749724785031,6.29643621,158.82,158.75,19.63840504]
[1749724785233,13.95840504,158.81,158.76,13.95840504]
[1749724785414,13.95840504,158.8,158.76,13.95840504]
[1749724785614,13.95840504,158.8,158.75,19.63840504]
[1749724785815,6.29762579,158.79,158.75,19.63840504]
[1749724786517,32.29734658,158.8,158.75,19.63840504]
[1749724786719,46.25575162,158.8,158.75,19.63840504]
[1749724787132,13.95840504,158.77,158.75,5.68]
[1749724787523,13.95840504,158.76,158.75,5.68]
[1749724787905,32.29734658,158.8,158.75,5.68]
[1749724788111,26.0,158.8,158.76,13.95840504]
[1749724790138,26.0,158.8,158.76,0.28432314]
[1749724790336,46.25565778,158.8,158.76,0.28432314]
[1749724790637,46.25565778,158.8,158.75,19.63840504]
[1749724790938,13.95840504,158.79,158.75,5.68]
[1749724792157,20.25614656,158.79,158.75,5.68]
[1749724793239,13.95840504,158.78,158.75,5.68]
[1749724793724,20.25614656,158.79,158.75,5.68]
[1749724794739,13.95840504,158.78,158.75,5.68]
[1749724797151,20.25645695,158.78,158.75,5.68]
[1749724799657,20.25645695,158.78,158.73,13.95840504]
[1749724799827,6.29805191,158.78,158.73,13.95840504]
[1749724800029,20.25645695,158.78,158.73,13.95840504]
[1749724800524,20.25645695,158.78,158.72,5.68]
[1749724800525,13.95840504,158.76,158.72,5.68]
[1749724801454,26.0,158.77,158.74,13.95840504]
[1749724802952,26.0,158.77,158.73,14.24272818]
[1749724804638,26.0,158.77,158.74,13.95840504]
[1749724805151,26.0,158.77,158.75,13.95840504]
[1749724805350,20.25579974,158.8,158.75,13.95840504]
[1749724805539,6.29603979,158.83,158.78,13.95840504]
[1749724805859,13.95840504,158.82,158.77,13.95840504]
[1749724806051,39.95840504,158.82,158.77,13.95840504]
[1749724806362,13.95840504,158.81,158.77,13.95840504]
[1749724807846,20.25526565,158.81,158.77,13.95840504]
[1749724810463,13.95840504,158.81,158.77,13.95840504]
[1749724810666,32.2965973,158.82,158.77,13.95840504]
[1749724810873,13.95840504,158.81,158.77,13.95840504]
[1749724811974,20.2552706,158.81,158.77,13.95840504]
[1749724812275,13.95840504,158.81,158.77,13.95840504]
[1749724812479,46.25520795,158.82,158.77,14.24272818]
[1749724813366,6.29524708,158.85,158.81,13.95840504]
[1749724813553,32.29524708,158.85,158.81,13.95840504]
[1749724813876,26.0,158.85,158.81,13.95840504]
[1749724814251,26.0,158.85,158.82,13.95840504]
[1749724815944,26.0,158.85,158.81,13.95840504]
[1749724816490,46.25374759,158.85,158.81,13.95840504]
[1749724816776,13.95840504,158.84,158.8,13.95840504]
[1749724817075,26.0,158.85,158.82,13.95840504]
[1749724817243,39.95840504,158.87,158.83,13.95840504]
[1749724818052,26.0,158.87,158.83,13.95840504]
[1749724818860,26.0,158.89,158.85,13.95840504]
[1749724819363,46.25158414,158.91,158.86,13.95840504]
[1749724819564,26.0,158.9,158.86,13.95840504]
[1749724819764,13.95840504,158.91,158.86,13.95840504]
[1749724819958,32.29271202,158.92,158.86,13.95840504]
[1749724820263,26.0,158.91,158.88,13.95840504]
[1749724820467,20.25058575,158.93,158.88,13.95840504]
[1749724820778,26.0,158.92,158.89,13.95840504]
[1749724820978,26.0,158.92,158.88,13.95840504]
[1749724822651,32.292609,158.92,158.88,13.95840504]
[1749724823468,46.25101404,158.92,158.88,13.95840504]
[1749724823674,32.29247626,158.92,158.88,13.95840504]
[1749724823858,26.0,158.92,158.88,13.95840504]
[1749724824368,32.29258119,158.92,158.88,13.95840504]
[1749724825353,26.0,158.92,158.89,13.95840504]
[1749724825555,13.95840504,158.95,158.9,13.95840504]
[1749724826057,13.95840504,158.94,158.9,13.95840504]
[1749724826472,6.29207827,158.93,158.86,18.933972]
[1749724826681,20.25048331,158.93,158.89,13.95840504]
[1749724827059,6.29180575,158.94,158.89,13.95840504]
[1749724827275,20.25021079,158.94,158.89,13.95840504]
[1749724827476,6.29180575,158.94,158.89,13.95840504]
[1749724827882,20.25021079,158.94,158.89,13.95840504]
[1749724828282,13.95840504,158.94,158.9,13.95840504]
[1749724828461,32.29141712,158.95,158.9,13.95840504]
[1749724828462,46.24982216,158.95,158.9,13.95840504]
[1749724828787,46.24982216,158.95,158.91,13.95840504]
[1749724829173,39.95840504,158.95,158.91,13.95840504]
[1749724829901,39.95840504,158.95,158.9,13.95840504]
[1749724830269,26.0,158.95,158.89,1.87312314]
[1749724830473,20.24904326,158.97,158.92,13.95840504]
[1749724830675,46.24904326,158.97,158.92,13.95840504]
[1749724830879,13.95840504,158.96,158.92,0.28432314]
[1749724831687,13.95840504,158.96,158.9,13.95840504]
[1749724831888,13.95840504,158.93,158.87,0.28432314]
[1749724832089,13.95840504,158.93,158.89,0.28432314]
[1749724832306,13.95840504,158.93,158.88,13.95840504]
[1749724832976,6.2924742,158.92,158.88,13.95840504]
[1749724833170,6.29222853,158.93,158.89,13.95840504]
[1749724833487,20.25063357,158.93,158.89,13.95840504]
[1749724834196,20.25063357,158.93,158.88,13.95840504]
[1749724836086,6.29222853,158.93,158.88,13.95840504]
[1749724836385,20.25063357,158.93,158.88,13.95840504]
[1749724837802,13.95840504,158.92,158.88,13.95840504]
[1749724839393,20.25063357,158.93,158.88,13.95840504]
[1749724839591,20.25063357,158.93,158.89,13.95840504]
[1749724840190,46.25025474,158.94,158.89,13.95840504]
[1749724840882,20.25065455,158.93,158.89,13.95840504]
[1749724842290,6.29224951,158.93,158.89,13.95840504]
[1749724842497,13.61143327,159.01,158.9,1.5473]
[1749724842681,13.95840504,158.95,158.91,0.28432314]
[1749724843083,20.24971384,158.95,158.91,0.28432314]
[1749724843712,13.95840504,158.95,158.91,0.28432314]
[1749724844994,20.25034766,158.94,158.9,0.28432314]
[1749724845695,20.25034766,158.94,158.87,0.28432314]
[1749724845895,20.25034766,158.94,158.89,13.95840504]
[1749724847315,13.95840504,158.93,158.89,0.28432314]
[1749724848788,13.95840504,158.92,158.87,13.95840504]
[1749724848989,13.95840504,158.92,158.88,0.28432314]
[1749724849388,20.25108605,158.92,158.88,0.28432314]
[1749724850306,13.95840504,158.91,158.86,15.50570504]
[1749724850482,13.95840504,158.91,158.87,0.28432314]
[1749724851196,13.95840504,158.91,158.86,13.95840504]
[1749724851399,20.25157869,158.91,158.86,13.95840504]
[1749724852600,20.25157869,158.91,158.86,0.28432314]
[1749724852809,20.25157869,158.91,158.86,14.24272818]
[1749724855311,6.29317365,158.91,158.86,0.28432314]
[1749724855514,6.29317365,158.91,158.87,13.95840504]
[1749724855718,20.25117471,158.92,158.87,13.95840504]
[1749724856912,20.25117471,158.92,158.86,0.28432314]
[1749724857112,20.25117471,158.92,158.87,13.95840504]
[1749724857314,13.95840504,158.91,158.87,13.95840504]
[1749724858110,20.25117471,158.92,158.87,13.95840504]
[1749724859716,13.95840504,158.91,158.87,13.95840504]
[1749724860525,13.95840504,158.91,158.86,14.24272818]
[1749724860722,13.95840504,158.91,158.86,0.28432314]
[1749724860924,13.95840504,158.89,158.85,5.68]
[1749724861119,13.95840504,158.88,158.85,5.68]
[1749724861502,13.95840504,158.86,158.83,0.28432314]
[1749724861709,13.95840504,158.85,158.82,5.68]
[1749724862725,13.95840504,158.84,158.82,5.68]
[1749724863028,13.95840504,158.83,158.82,5.68]
[1749724863234,39.95840504,158.83,158.82,5.68]
[1749724863610,46.25444483,158.83,158.82,5.68]
[1749724864202,26.0,158.8,158.75,5.68]
[1749724864621,26.0,158.8,158.76,13.95840504]
[1749724864822,26.0,158.8,158.77,13.95840504]
[1749724865223,26.0,158.8,158.76,14.24272818]
[1749724866138,13.95840504,158.79,158.75,5.68]
[1749724867829,32.29724044,158.8,158.75,5.68]
[1749724868029,20.2564507,158.78,158.75,5.68]
[1749724868218,13.95840504,158.77,158.75,5.68]
[1749724869113,6.29804566,158.78,158.75,5.68]
[1749724869114,13.95840504,158.76,158.75,5.68]
[1749724869916,6.29804566,158.78,158.75,5.68]
[1749724869917,20.2564507,158.78,158.75,5.68]
[1749724871325,20.25617699,158.79,158.75,5.68]
[1749724871932,20.25647686,158.78,158.75,5.68]
[1749724872125,13.95840504,158.77,158.75,5.68]
[1749724873115,13.95840504,158.78,158.75,5.68]
[1749724873938,6.2977756,158.79,158.75,5.68]
[1749724874145,13.95840504,158.79,158.75,19.63840504]
[1749724874339,13.95840504,158.79,158.75,5.68]
[1749724875236,39.95840504,158.8,158.76,13.95840504]
[1749724875436,13.95840504,158.8,158.76,13.95840504]
[1749724875745,26.39084886,158.83,158.76,13.95840504]
[1749724875746,13.95840504,158.81,158.76,14.24272818]
[1749724876122,13.95840504,158.79,158.76,0.28432314]
[1749724877651,13.95840504,158.8,158.76,0.28432314]
[1749724878361,13.95840504,158.79,158.76,0.28432314]
[1749724878848,13.95840504,158.8,158.76,0.28432314]
[1749724881248,26.0,158.82,158.77,13.95840504]
[1749724881455,13.95840504,158.82,158.78,13.95840504]
[1749724881824,149.1,158.86,158.8,13.95840504]
[1749724881825,13.95840504,158.85,158.8,13.95840504]
[1749724882148,13.95840504,158.85,158.81,13.95840504]
[1749724882350,13.95840504,158.85,158.8,13.95840504]
[1749724882922,13.95840504,158.81,158.77,0.28432314]
[1749724883146,13.95840504,158.79,158.76,1.86562314]
[1749724883350,26.0,158.83,158.77,13.95840504]
[1749724883351,13.95840504,158.82,158.77,13.95840504]
[1749724884124,13.95840504,158.81,158.76,14.10056661]
[1749724884344,13.95840504,158.8,158.75,19.63840504]
[1749724884544,39.95840504,158.84,158.79,13.95840504]
[1749724884757,26.0,158.84,158.79,13.95840504]
[1749724885054,39.95840504,158.84,158.79,13.95840504]
[1749724886124,39.95840504,158.84,158.8,13.95840504]
[1749724888237,26.0,158.84,158.81,13.95840504]
[1749724888963,163.05840504,158.86,158.81,13.95840504]
[1749724889868,26.0,158.85,158.82,13.95840504]
[1749724890063,7.664,158.87,158.83,13.95840504]
[1749724890064,13.95840504,158.87,158.83,13.95840504]
[1749724890241,13.95840504,158.88,158.83,13.95840504]
[1749724890434,39.95840504,158.88,158.83,13.95840504]
[1749724890631,23.9805115,158.91,158.85,13.95840504]
[1749724890632,8.2475,158.91,158.85,13.95840504]
[1749724890882,155.39220792,158.93,158.87,13.95840504]
[1749724891168,13.95840504,158.92,158.87,13.95840504]
[1749724891669,13.95840504,158.91,158.86,13.95840504]
[1749724893349,13.95840504,158.91,158.87,13.95840504]
[1749724894770,13.95840504,158.9,158.85,0.28432314]
[1749724895078,13.95840504,158.9,158.85,14.24272818]
[1749724895569,13.95840504,158.9,158.86,13.95840504]
[1749724896547,20.25153445,158.91,158.86,13.95840504]
[1749724896955,175.1,158.93,158.88,13.95840504]
[1749724897163,39.95840504,158.93,158.85,1.87012314]
[1749724897370,13.95840504,158.92,158.87,13.95840504]
[1749724897569,13.95840504,158.89,158.85,0.28432314]
[1749724897774,13.95840504,158.89,158.85,14.24272818]
[1749724898089,13.95840504,158.9,158.86,13.95840504]
[1749724898682,20.25169695,158.9,158.85,14.24272818]
[1749724899573,20.25138329,158.91,158.86,13.95840504]
[1749724900285,13.95840504,158.9,158.85,0.28432314]
[1749724900464,13.95840504,158.89,158.85,14.24272818]
[1749724900665,13.95840504,158.9,158.86,13.95840504]
[1749724901487,8.2475,158.95,158.85,0.28432314]
[1749724901488,149.1,158.98,158.89,13.95840504]
[1749724901784,6.29049506,158.97,158.93,13.95840504]
[1749724902083,13.95840504,158.97,158.93,13.95840504]
[1749724902295,20.24896058,158.97,158.92,13.95840504]
[1749724903009,175.1,158.98,158.93,13.95840504]
[1749724903010,39.95840504,158.98,158.93,13.95840504]
[1749724903573,13.95840504,158.98,158.93,13.95840504]
[1749724903889,20.24877939,158.98,158.93,13.95840504]
[1749724904094,26.0,158.97,158.93,13.95840504]
[1749724904388,32.29069702,158.97,158.93,13.95840504]
[1749724905464,13.95840504,158.96,158.91,13.95840504]
[1749724905691,46.24910206,158.97,158.92,13.95840504]
[1749724908701,32.29069702,158.97,158.92,13.95840504]
[1749724908900,46.24910206,158.97,158.92,13.95840504]
[1749724909199,26.0,158.97,158.93,13.95840504]
[1749724909696,26.0,158.97,158.94,13.95840504]
[1749724909997,46.24900037,158.97,158.93,13.95840504]
[1749724911586,26.0,158.97,158.93,13.95840504]
[1749724911996,32.29051317,158.97,158.93,13.95840504]
[1749724912381,46.24891821,158.97,158.93,13.95840504]
[1749724912898,46.24891821,158.97,158.92,13.95840504]
[1749724916001,46.24891821,158.97,158.93,13.95840504]
[1749724916303,46.24896365,158.97,158.93,13.95840504]
[1749724917010,39.95840504,158.97,158.93,13.95840504]
[1749724917602,26.0,158.97,158.94,13.95840504]
[1749724917909,26.0,158.97,158.93,19.61840504]
[1749724918291,46.24893624,158.97,158.93,19.61840504]
[1749724918491,46.24893624,158.97,158.93,5.66]
[1749724918898,6.28987541,158.99,158.94,13.95840504]
[1749724919101,26.0,158.96,158.94,13.95840504]
[1749724920182,26.0,158.97,158.93,19.61840504]
[1749724920382,20.24818763,158.99,158.95,13.95840504]
[1749724922511,20.24818763,158.99,158.94,14.24272818]
[1749724923399,13.95840504,158.99,158.94,14.24272818]
[1749724923679,46.24786982,159.0,158.95,13.95840504]
[1749724925897,20.24815741,158.99,158.94,0.28432314]
[1749724926098,20.24815741,158.99,158.95,13.95840504]
[1749724928212,20.24815741,158.99,158.94,0.28432314]
[1749724928514,20.24815741,158.99,158.94,14.24272818]
[1749724932011,13.95840504,158.98,158.94,13.95840504]
[1749724932318,6.28975237,158.99,158.93,5.66]
[1749724932622,13.95840504,158.94,158.83,1.5095]
[1749724932817,13.95840504,158.9,158.86,13.95840504]
[1749724934009,20.25168723,158.9,158.86,0.28432314]
[1749724934412,13.95840504,158.89,158.85,0.28432314]
[1749724934598,6.29328219,158.9,158.85,0.28432314]
[1749724934793,13.95840504,158.89,158.84,13.95840504]
[1749724935605,13.95840504,158.89,158.85,0.28432314]
[1749724937820,13.95840504,158.9,158.85,14.24272818]
[1749724940838,26.0,158.92,158.89,13.95840504]
[1749724940995,6.29128656,158.95,158.9,13.95840504]
[1749724941196,13.95840504,158.96,158.92,13.95840504]
[1749724941493,33.7398,158.97,158.92,13.95840504]
[1749724941824,13.95840504,158.96,158.92,13.95840504]
[1749724942536,20.24930422,158.96,158.91,13.95840504]
[1749724943203,6.29089918,158.96,158.91,13.95840504]
[1749724943424,46.24900292,158.97,158.92,13.95840504]
[1749724943626,13.95840504,158.96,158.91,13.95840504]
[1749724943904,13.95840504,158.93,158.89,13.95840504]
[1749724945005,20.25057769,158.93,158.88,13.95840504]
[1749724945332,13.95840504,158.94,158.9,13.95840504]
[1749724946106,13.95840504,158.95,158.9,13.95840504]
[1749724946839,46.24933184,158.96,158.91,13.95840504]
[1749724947012,39.95840504,158.96,158.91,13.95840504]
[1749724947214,26.0,158.96,158.92,13.95840504]
[1749724947930,26.0,158.96,158.93,13.95840504]
[1749724948838,149.1,158.99,158.94,13.95840504]
[1749724949135,149.1,158.99,158.91,0.28432314]
[1749724949136,26.0,158.98,158.96,13.95840504]
[1749724949338,13.95840504,159.0,158.96,13.95840504]
[1749724949529,39.87990626,159.01,158.96,13.95840504]
[1749724949706,53.8383113,159.01,158.96,13.95840504]
[1749724950610,46.2474113,159.01,158.96,13.95840504]
[1749724951037,6.28824922,159.03,158.96,13.95840504]
[1749724951212,13.95840504,159.02,158.97,13.95840504]
[1749724951410,13.95840504,159.01,158.96,13.95840504]
[1749724952237,20.24739282,159.01,158.96,13.95840504]
[1749724954139,13.95840504,158.98,158.93,13.95840504]
[1749724954508,13.95840504,158.97,158.91,0.28432314]
[1749724954730,13.95840504,158.97,158.93,13.95840504]
[1749724955031,26.0,158.98,158.95,13.95840504]
[1749724955415,26.0,158.98,158.94,13.95840504]
[1749724955840,13.95840504,158.98,158.91,0.28432314]
[1749724956012,13.95840504,158.97,158.92,13.95840504]
[1749724958023,20.24892164,158.97,158.92,13.95840504]
[1749724960046,13.95840504,158.96,158.92,13.95840504]
[1749724961044,20.24892164,158.97,158.92,13.95840504]
[1749724961613,13.95840504,158.96,158.92,13.95840504]
[1749724961842,13.95840504,158.96,158.91,13.95840504]
[1749724962424,13.95840504,158.95,158.91,13.95840504]
[1749724962624,13.95840504,158.95,158.9,13.95840504]
[1749724962825,13.95840504,158.94,158.89,13.95840504]
[1749724965554,13.95840504,158.92,158.87,24.96497917]
[1749724965844,13.95840504,158.92,158.87,38.92338421]
[1749724966056,13.95840504,158.93,158.88,13.95840504]
[1749724966630,13.95840504,158.93,158.87,24.96497917]
[1749724966841,13.95840504,158.92,158.88,13.95840504]
[1749724967046,13.95840504,158.92,158.87,38.92338421]
[1749724967553,6.2918,158.94,158.87,38.92338421]
[1749724967554,13.95840504,158.91,158.87,38.92338421]
[1749724968225,26.0,158.92,158.88,13.95840504]
[1749724968839,13.95840504,158.94,158.89,13.95840504]
[1749724972864,20.25022139,158.94,158.89,13.95840504]
[1749724975059,13.95840504,158.93,158.89,13.95840504]
[1749724975636,6.29181635,158.94,158.89,13.95840504]
[1749724975840,13.95840504,158.93,158.89,13.95840504]
[1749724976360,13.95840504,158.93,158.88,13.95840504]
[1749724977048,13.95840504,158.93,158.89,13.95840504]
[1749724979557,6.29181635,158.94,158.89,13.95840504]
[1749724979763,13.95840504,158.93,158.89,13.95840504]
[1749724980463,13.95840504,158.93,158.88,13.95840504]
[1749724981653,13.95840504,158.93,158.89,13.95840504]
[1749724981968,13.95840504,158.93,158.87,24.96497917]
[1749724981969,13.95840504,158.91,158.87,24.96497917]
[1749724982157,13.95840504,158.89,158.87,24.96497917]
[1749724982342,13.95840504,158.9,158.87,24.96497917]
[1749724982746,13.95840504,158.89,158.87,24.96497917]
[1749724983186,13.95840504,158.89,158.84,13.95840504]
[1749724983358,13.95840504,158.92,158.88,13.95840504]
[1749724984043,13.95840504,158.92,158.87,13.95840504]
[1749724984457,13.95840504,158.91,158.86,13.95840504]
[1749724986270,13.95840504,158.92,158.87,13.95840504]
[1749724986649,13.95840504,158.92,158.88,13.95840504]
[1749724986849,13.95840504,158.93,158.88,13.95840504]
[1749724987045,13.95840504,158.94,158.89,13.95840504]
[1749724987285,6.29143182,158.95,158.88,13.95840504]
[1749724987286,13.95840504,158.93,158.88,13.95840504]
[1749724987463,13.95840504,158.92,158.87,13.95840504]
[1749724987647,13.95840504,158.92,158.85,0.28432314]
[1749724987648,13.95840504,158.91,158.86,13.95840504]
[1749724987848,13.95840504,158.92,158.87,13.95840504]
[1749724988048,13.95840504,158.92,158.88,13.95840504]
[1749724988262,32.29143182,158.95,158.88,13.95840504]
[1749724988456,13.95840504,158.92,158.88,13.95840504]
[1749724989060,13.95840504,158.91,158.87,13.95840504]
[1749724989253,13.95840504,158.89,158.84,13.95840504]
[1749724989457,13.95840504,158.86,158.82,15.59720504]
[1749724989686,13.95840504,158.87,158.83,13.95840504]
[1749724990059,13.95840504,158.89,158.84,13.95840504]
[1749724990366,13.95840504,158.89,158.85,13.95840504]
[1749724990575,13.95840504,158.89,158.84,13.95840504]
[1749724990776,13.95840504,158.88,158.84,13.95840504]
[1749724991160,13.95840504,158.87,158.82,15.59720504]
[1749724992177,13.95840504,158.87,158.83,13.95840504]
[1749724993481,13.95840504,158.89,158.85,13.95840504]
[1749724993685,39.95840504,158.9,158.85,13.95840504]
[1749724993853,20.25097255,158.92,158.87,13.95840504]
[1749724994666,13.95840504,158.91,158.87,13.95840504]
[1749724995684,13.95840504,158.92,158.87,13.95840504]
[1749724997386,39.95840504,158.93,158.88,13.95840504]
[1749724998191,13.95840504,158.93,158.89,13.95840504]
[1749724998377,13.95840504,158.94,158.89,13.95840504]
[1749724998688,13.95840504,158.93,158.89,13.95840504]
[1749725001463,13.95840504,158.92,158.87,13.95840504]
[1749725001793,13.95840504,158.89,158.83,26.0]
[1749725001964,13.95840504,158.88,158.83,13.95840504]
[1749725002887,13.95840504,158.87,158.83,13.95840504]
[1749725003383,13.95840504,158.88,158.83,13.95840504]
[1749725004988,13.95840504,158.87,158.83,13.95840504]
[1749725006193,13.95840504,158.87,158.82,1.6388]
[1749725006373,13.95840504,158.86,158.82,15.59720504]
[1749725007575,13.95840504,158.86,158.82,13.95840504]
[1749725007874,13.95840504,158.86,158.81,13.95840504]
[1749725008082,20.25327154,158.86,158.81,13.95840504]
[1749725008284,13.95840504,158.85,158.8,13.95840504]
[1749725009496,13.95840504,158.86,158.81,13.95840504]
[1749725010394,7.9295,158.89,158.82,13.95840504]
[1749725010585,16.01534436,158.93,158.86,13.95840504]
[1749725010586,13.95840504,158.91,158.86,13.95840504]
[1749725010791,26.0,158.9,158.87,13.95840504]
[1749725010970,26.0,158.9,158.88,13.95840504]
[1749725011176,13.95840504,158.92,158.87,13.95840504]
[1749725011601,13.95840504,158.91,158.87,13.95840504]
[1749725011973,39.95840504,158.91,158.87,13.95840504]
[1749725012902,26.0,158.91,158.87,13.95840504]
[1749725013193,26.0,158.91,158.88,13.95840504]
[1749725013402,26.0,158.91,158.87,13.95840504]
[1749725015274,26.0,158.91,158.88,13.95840504]
[1749725015474,13.95840504,158.92,158.88,13.95840504]
[1749725016587,13.95840504,158.92,158.87,13.95840504]
[1749725019593,13.95840504,158.93,158.88,13.95840504]
[1749725020677,20.25052224,158.93,158.88,13.95840504]
[1749725021589,6.2921172,158.93,158.88,13.95840504]
[1749725021787,39.95840504,158.94,158.89,13.95840504]
[1749725021986,46.25009469,158.94,158.89,13.95840504]
[1749725022179,13.95840504,158.93,158.89,13.95840504]
[1749725023209,32.29168965,158.94,158.89,13.95840504]
[1749725023396,13.95840504,158.93,158.89,13.95840504]
[1749725023711,13.95840504,158.92,158.88,13.95840504]
[1749725025895,13.95840504,158.91,158.84,27.88912314]
[1749725026086,13.95840504,158.9,158.85,13.95840504]
[1749725026411,13.95840504,158.91,158.86,13.95840504]
[1749725027504,20.25138068,158.91,158.86,13.95840504]
[1749725028407,13.95840504,158.9,158.85,13.95840504]
[1749725028706,27.85302155,158.93,158.88,13.95840504]
[1749725029393,13.95840504,158.92,158.88,13.95840504]
[1749725029906,13.89461651,158.93,158.88,13.95840504]
[1749725030300,13.95840504,158.92,158.88,13.95840504]
[1749725031509,20.25098793,158.92,158.87,13.95840504]
[1749725031704,13.95840504,158.91,158.87,13.95840504]
[1749725032087,13.95840504,158.91,158.86,13.95840504]
[1749725033709,20.25153347,158.91,158.86,13.95840504]
[1749725038307,20.25153347,158.91,158.84,1.6048]
[1749725038486,20.25153347,158.91,158.86,13.95840504]
[1749725040594,20.25153347,158.91,158.84,1.6048]
[1749725040800,20.25186894,158.9,158.85,13.95840504]
[1749725041198,6.2934639,158.9,158.86,13.95840504]
[1749725042008,20.25143367,158.91,158.86,13.95840504]
[1749725044091,20.25143367,158.91,158.8,1.5161]
[1749725044092,13.95840504,158.87,158.8,1.5161]
[1749725044415,13.95840504,158.85,158.8,1.5161]
[1749725044721,13.95840504,158.85,158.8,15.47450504]
[1749725045230,20.2538189,158.85,158.8,15.47450504]
[1749725045526,13.95840504,158.84,158.79,13.95840504]
[1749725046733,39.95840504,158.88,158.83,13.95840504]
[1749725047032,39.95840504,158.88,158.77,0.28432314]
[1749725047033,39.95840504,158.87,158.82,13.95840504]
[1749725047398,13.95840504,158.85,158.8,13.95840504]
[1749725047598,13.95840504,158.84,158.77,0.14216157]
[1749725047837,39.95840504,158.83,158.78,13.95840504]
[1749725048000,39.95840504,158.83,158.79,13.95840504]
[1749725048195,26.0,158.83,158.79,13.95840504]
[1749725050301,32.29613296,158.83,158.79,13.95840504]
[1749725050625,46.254538,158.83,158.79,13.95840504]
[1749725051522,13.95840504,158.86,158.82,13.95840504]
[1749725053121,13.95840504,158.86,158.77,0.14216157]
[1749725053318,13.95840504,158.86,158.82,13.95840504]
[1749725053515,13.95840504,158.86,158.77,0.14216157]
[1749725053724,20.25339709,158.86,158.82,13.95840504]
[1749725053921,13.95840504,158.86,158.82,13.95840504]
[1749725054223,6.2948771,158.86,158.82,13.95840504]
[1749725054809,6.29366228,158.89,158.84,13.95840504]
[1749725055022,13.95840504,158.89,158.84,13.95840504]
[1749725056024,20.25206732,158.89,158.85,13.95840504]
[1749725056408,46.25170952,158.9,158.85,13.95840504]
[1749725056722,46.25170952,158.9,158.86,13.95840504]
[1749725057444,26.0,158.9,158.87,13.95840504]
[1749725057637,7.80875489,158.94,158.82,0.14216157]
[1749725057638,6.29168239,158.94,158.89,13.95840504]
[1749725057818,26.0,158.93,158.89,13.95840504]
[1749725058132,20.25008743,158.94,158.89,13.95840504]
[1749725058535,26.0,158.93,158.89,13.95840504]
[1749725059907,32.29217072,158.93,158.89,13.95840504]
[1749725062341,46.25057576,158.93,158.89,13.95840504]
[1749725063238,46.25057576,158.93,158.88,13.95840504]
[1749725064041,13.95840504,158.92,158.87,13.95840504]
[1749725064225,13.95840504,158.91,158.86,13.95840504]
[1749725064536,13.95840504,158.91,158.87,13.95840504]
[1749725064756,13.95840504,158.9,158.83,26.28432314]
[1749725065037,13.95840504,158.89,158.83,26.0]
[1749725065245,13.95840504,158.89,158.84,13.95840504]
[1749725065417,13.95840504,158.89,158.85,13.95840504]
[1749725065837,20.25210547,158.89,158.85,13.95840504]
[1749725066513,20.25181897,158.9,158.86,13.95840504]
[1749725068144,13.95840504,158.89,158.84,13.95840504]
[1749725068436,13.95840504,158.87,158.82,13.95840504]
[1749725068817,55.69467944,158.9,158.82,13.95840504]
[1749725069015,13.95840504,158.88,158.83,13.95840504]
[1749725070340,20.25251739,158.88,158.83,13.95840504]
[1749725071743,20.25251739,158.88,158.81,1.5485]
[1749725072040,20.25251739,158.88,158.83,13.95840504]
[1749725073346,13.95840504,158.87,158.83,13.95840504]
[1749725073716,13.95840504,158.86,158.82,13.95840504]
[1749725074025,13.95840504,158.86,158.81,15.50690504]
[1749725074226,13.95840504,158.84,158.8,13.95840504]
[1749725075724,13.95840504,158.86,158.81,13.95840504]
[1749725076933,20.25360674,158.86,158.81,13.95840504]
[1749725077835,6.29458558,158.87,158.82,13.95840504]
[1749725078043,6.29458558,158.87,158.83,13.95840504]
[1749725078624,20.25299062,158.87,158.83,13.95840504]
[1749725079151,26.0,158.87,158.83,13.95840504]
[1749725079355,39.95840504,158.87,158.83,13.95840504]